fUST/lending_fUST_20240227
["ID","MTS","AMOUNT","RATE_DAILY","PERIOD"]
[315399343,1709011845920,-301.86451415,0.00020547,2]
[315399344,1709011845929,-2367.76,0.00020547,2]
[315399345,1709011845938,-542.77,0.00020547,2]
[315399346,1709011845947,-500.0,0.00020547,2]
[315399347,1709011845956,-500.0,0.00020547,2]
[315399348,1709011845965,-1167.25,0.00020547,2]
[315399349,1709011845974,-1507.71,0.00020547,2]
[315399350,1709011845983,-75402.60407784,0.00020575,2]
[315399351,1709011845992,-5000.0,0.00020645,5]
[315399352,1709011846001,-4476.25561109,0.00020645,3]
[315399353,1709011846010,-5000.0,0.00020645,5]
[315399354,1709011846019,-98555.59956121,0.00020645,3]
[315399355,1709011846028,-5000.0,0.00020645,5]
[315399356,1709011846037,-28876.40129627,0.00020645,4]
[315399357,1709011846046,-151.0,0.00020645,2]
[315399358,1709011846056,-151.0,0.00020645,2]
[315399359,1709011846065,-2306.24156423,0.00020645,3]
[315399361,1709011846075,-151.0,0.00020645,2]
[315399363,1709011846084,-512.77494669,0.00020685,2]
[315399365,1709011846094,-1000.0,0.00020685,5]
[315399366,1709011846103,-421.82606269,0.00020685,2]
[315399367,1709011846112,-857.4118421,0.00020685,2]
[315399368,1709011846121,-23586.82338706,0.00020685,2]
[315399369,1709011846131,-6932.38963001,0.00020685,2]
[315399370,1709011846140,-298.50674706,0.00020685,2]
[315399371,1709011846150,-1000.0,0.00020685,5]
[315399372,1709011846158,-491.04527706,0.00020685,2]
[315399373,1709011846167,-2537.39124367,0.00020685,2]
[315399374,1709011846223,-103.96713533,0.00020685,2]
[315399375,1709011846232,-2641.358379,0.00020685,2]
[315399376,1709011846241,-151.200963,0.00020685,2]
[315399377,1709011846250,-630.377174,0.00020685,2]
[315399378,1709011846259,-630.377174,0.00020685,2]
[315399379,1709011846269,-1082.19335374,0.00020721,2]
[315399380,1709011846277,-1000.0,0.00020766,2]
[315399381,1709011846287,-1324.46051599,0.000208,2]
[315399382,1709011846296,-984.2,0.00020821,2]
[315399383,1709011846305,-1139.6,0.00020821,2]
[315399384,1709011846314,-500.0,0.00020821,2]
[315399385,1709011846323,-500.0,0.00020821,2]
[315399386,1709011846332,-500.0,0.00020821,2]
[315399387,1709011846342,-500.0,0.00020821,2]
[315399388,1709011846351,-500.0,0.00020821,2]
[315399389,1709011846360,-612.43,0.00020821,2]
[315399390,1709011846369,-500.0,0.00020821,2]
[315399391,1709011846379,-247.16884376,0.00020821,2]
[315399392,1709011846388,-1105.9,0.00020821,2]
[315399393,1709011846398,-659.62,0.00020821,2]
[315399394,1709011846406,-2750.49,0.00020821,2]
[315399395,1709011846415,-1120.73,0.00020821,2]
[315399396,1709011846424,-1778.14,0.00020821,2]
[315399397,1709011846433,-1589.52,0.00020821,2]
[315399398,1709011846442,-500.0,0.00020821,2]
[315399399,1709011846452,-13854.33,0.00020821,2]
[315399400,1709011846461,-1052.80008863,0.00020821,2]
[315399401,1709011846533,-316.37991137,0.00020821,2]
[315399402,1709011846545,-588.85,0.00020821,2]
[315399403,1709011846559,-673.52,0.00020821,2]
[315399404,1709011846568,-1102.6,0.00020821,2]
[315399405,1709011846577,-7587.69,0.00020821,2]
[315399406,1709011846589,-671.81,0.00020821,2]
[315399407,1709011846598,-863.19,0.00020821,2]
[315399408,1709011846606,-1888.44281188,0.00020821,2]
[315399409,1709011846619,-1030.43718812,0.00020821,2]
[315399410,1709011846630,-634.37,0.00020821,2]
[315399411,1709011846639,-1175.17,0.00020821,2]
[315399412,1709011846647,-374.52281188,0.00020821,2]
[315399413,1709011846808,-500.0,0.00019178,2]
[315399414,1709011846817,-504.27548558,0.00019452,2]
[315399415,1709011846827,-153.0,0.000195,2]
[315399416,1709011846836,-1932.42451442,0.00020101,5]
[315399589,1709013039186,-155.18622347,0.0001889,2]
[315399590,1709013039197,-155.18622347,0.00018891,2]
[315399591,1709013039207,-1426.92090632,0.00018899,2]
[315399592,1709013039216,-612.84972484,0.000189,2]
[315399593,1709013039225,-242.43,0.00019168,3]
[315399594,1709013039234,-202.02,0.00019168,3]
[315399595,1709013039243,-282.47,0.00019168,3]
[315399597,1709013039252,-235.39,0.00019168,3]
[315399599,1709013039261,-157.8,0.00019168,3]
[315399600,1709013039270,-473.44,0.00019168,3]
[315399601,1709013039280,-162.39455529,0.00019176,2]
[315399603,1709013039289,-1213.56535489,0.00019177,2]
[315399605,1709013039297,-500.0,0.00019177,2]
[315399607,1709013039306,-174.83088943,0.00019178,2]
[315399609,1709013039316,-500.0,0.00019178,2]
[315399610,1709013039325,-500.82103858,0.00019178,2]
[315399611,1709013039334,-503.97375337,0.00019178,2]
[315399612,1709013039343,-500.0,0.00019178,2]
[315399613,1709013039352,-500.0,0.00019178,2]
[315399614,1709013039361,-676.06,0.00019178,2]
[315399615,1709013039370,-500.0,0.00019178,2]
[315399616,1709013039379,-500.0,0.00019178,2]
[315399617,1709013039388,-1196.51,0.00019178,2]
[315399618,1709013039397,-500.57576377,0.00019178,2]
[315399619,1709013039406,-527.39049889,0.00019178,2]
[315399620,1709013039415,-258.94286417,0.00019178,2]
[315399621,1709013039424,-589.2876803,0.00019178,2]
[315399622,1709013039433,-500.0,0.00019178,2]
[315399623,1709013039444,-500.0,0.00019178,2]
[315399624,1709013039454,-500.0,0.00019178,2]
[315399625,1709013039463,-500.0,0.00019178,2]
[315399626,1709013039472,-494.77754514,0.00019178,2]
[315399627,1709013039481,-500.0,0.00019178,2]
[315399628,1709013039490,-500.96626582,0.00019178,2]
[315399629,1709013039499,-500.0,0.00019178,2]
[315399630,1709013039508,-2468.09,0.00019178,2]
[315399631,1709013039517,-500.0,0.00019178,2]
[315399632,1709013039526,-500.0,0.00019178,2]
[315399633,1709013039535,-500.0,0.00019178,2]
[315399634,1709013039544,-500.0,0.00019178,2]
[315399635,1709013039553,-505.0,0.00019178,2]
[315399636,1709013039563,-500.0,0.00019178,2]
[315399637,1709013039572,-500.0,0.00019178,2]
[315399638,1709013039580,-503.76918573,0.00019178,2]
[315399639,1709013039590,-500.0,0.00019178,2]
[315399640,1709013039599,-491.01392198,0.00019178,2]
[315399641,1709013039608,-501.73727444,0.00019178,2]
[315399642,1709013039616,-500.0,0.00019178,2]
[315399643,1709013039625,-500.0,0.00019178,2]
[315399644,1709013039634,-500.0,0.00019178,2]
[315399645,1709013039643,-479.74109791,0.00019178,2]
[315399647,1709013039653,-500.0,0.00019178,2]
[315399648,1709013039663,-500.0,0.00019178,2]
[315399650,1709013039673,-722.64,0.00019178,2]
[315399653,1709013039682,-500.0,0.00019178,2]
[315399655,1709013039691,-500.0,0.00019178,2]
[315399657,1709013039700,-500.0,0.00019178,2]
[315399659,1709013039710,-262.021544,0.00019178,2]
[315399661,1709013039719,-670.13,0.00019178,2]
[315399663,1709013039728,-827.03,0.00019178,2]
[315399665,1709013039737,-827.03,0.00019178,2]
[315399666,1709013039746,-827.03,0.00019178,2]
[315399668,1709013039756,-827.03,0.00019178,2]
[315399670,1709013039765,-500.0,0.00019178,2]
[315399672,1709013039774,-500.0,0.00019178,2]
[315399674,1709013039783,-500.0,0.00019178,2]
[315399676,1709013039792,-523.56834789,0.00019178,2]
[315399678,1709013039801,-500.0,0.00019178,2]
[315399680,1709013039810,-500.0,0.00019178,2]
[315399682,1709013039819,-500.0,0.00019178,2]
[315399684,1709013039828,-500.0,0.00019178,2]
[315399686,1709013039838,-500.0,0.00019178,2]
[315399688,1709013039847,-500.0,0.00019178,2]
[315399689,1709013039856,-3196.31,0.00019178,2]
[315399691,1709013039865,-502.13809935,0.00019178,2]
[315399693,1709013039875,-1315.3,0.00019178,2]
[315399695,1709013039884,-259.29438802,0.00019178,2]
[315399697,1709013039897,-500.0,0.00019178,2]
[315399699,1709013039906,-401.70891154,0.00019178,2]
[315399701,1709013039915,-501.62472493,0.00019178,2]
[315399703,1709013039924,-2121.19,0.00019178,2]
[315399705,1709013039934,-500.0,0.00019178,2]
[315399707,1709013039944,-500.0,0.00019178,2]
[315399709,1709013039954,-500.0,0.00019178,2]
[315399711,1709013039963,-500.0,0.00019178,2]
[315399713,1709013039972,-500.0,0.00019178,2]
[315399715,1709013039984,-500.39586929,0.00019178,2]
[315399717,1709013039993,-199.07478984,0.00019178,2]
[315399719,1709013040002,-501.0545009,0.00019178,2]
[315399721,1709013040010,-500.0,0.00019178,2]
[315399723,1709013040019,-500.0,0.00019178,2]
[315399725,1709013040028,-428.09835551,0.00019178,2]
[315399727,1709013040038,-500.3946535,0.00019178,2]
[315399729,1709013040047,-500.0,0.00019178,2]
[315399731,1709013040057,-500.0,0.00019178,2]
[315399733,1709013040066,-646.93,0.00019178,2]
[315399735,1709013040075,-500.0,0.00019178,2]
[315399737,1709013040084,-571.62311212,0.00019178,2]
[315399739,1709013040093,-501.9436783,0.00019178,2]
[315399741,1709013040102,-500.0,0.00019178,2]
[315399743,1709013040111,-500.0,0.00019178,2]
[315399745,1709013040120,-500.0,0.00019178,2]
[315399747,1709013040129,-500.0,0.00019178,2]
[315399749,1709013040139,-500.0,0.00019178,2]
[315399751,1709013040148,-501.36407866,0.00019178,2]
[315399753,1709013040157,-500.0,0.00019178,2]
[315399755,1709013040166,-271.13683731,0.00019178,2]
[315399757,1709013040175,-500.2963031,0.00019178,2]
[315399759,1709013040184,-500.0,0.00019178,2]
[315399761,1709013040194,-2430.74,0.00019178,2]
[315399763,1709013040203,-500.0,0.00019178,2]
[315399766,1709013040213,-2159.82193552,0.00019178,2]
[315399769,1709013040221,-500.0,0.00019178,2]
[315399771,1709013040231,-500.0,0.00019178,2]
[315399773,1709013040240,-500.0,0.00019178,2]
[315399775,1709013040249,-500.0,0.00019178,2]
[315399777,1709013040259,-1277.93,0.00019178,2]
[315399779,1709013040268,-544.99348939,0.00019178,2]
[315399781,1709013040277,-1360.78,0.00019178,2]
[315399783,1709013040286,-500.0,0.00019178,2]
[315399785,1709013040295,-443.10422866,0.00019178,2]
[315399787,1709013040304,-500.0,0.00019178,2]
[315399789,1709013040313,-500.0,0.00019178,2]
[315399791,1709013040323,-1266.31,0.00019178,2]
[315399793,1709013040332,-500.0,0.00019178,2]
[315399795,1709013040341,-500.0,0.00019178,2]
[315399797,1709013040350,-500.0,0.00019178,2]
[315399799,1709013040360,-500.0,0.00019178,2]
[315399801,1709013040369,-476.05935812,0.00019178,2]
[315399803,1709013040378,-500.0,0.00019178,2]
[315399805,1709013040387,-451.77238634,0.00019178,2]
[315399807,1709013040396,-1601.34,0.00019178,2]
[315399809,1709013040406,-500.0,0.00019178,2]
[315399811,1709013040415,-1729.0,0.00019178,2]
[315399813,1709013040424,-500.0,0.00019178,2]
[315399815,1709013040434,-502.97392599,0.00019178,2]
[315399817,1709013040443,-500.0,0.00019178,2]
[315399819,1709013040452,-500.0,0.00019178,2]
[315399820,1709013040461,-500.0,0.00019178,2]
[315399822,1709013040470,-501.95643743,0.00019178,2]
[315399824,1709013040480,-502.24533247,0.00019178,2]
[315399826,1709013040489,-500.0,0.00019178,2]
[315399828,1709013040498,-500.0,0.00019178,2]
[315399830,1709013040507,-500.0,0.00019178,2]
[315399832,1709013040516,-500.0,0.00019178,2]
[315399834,1709013040525,-500.0,0.00019178,2]
[315399836,1709013040534,-500.0,0.00019178,2]
[315399838,1709013040543,-219.97376393,0.00019178,2]
[315399840,1709013040552,-500.74212623,0.00019178,2]
[315399842,1709013040562,-500.0,0.00019178,2]
[315399844,1709013040571,-1393.89,0.00019178,2]
[315399846,1709013040580,-16819.02,0.00019178,2]
[315399848,1709013040589,-500.0,0.00019178,2]
[315399850,1709013040598,-501.378692,0.00019178,2]
[315399852,1709013040607,-500.0,0.00019178,2]
[315399855,1709013040616,-500.0,0.00019178,2]
[315399857,1709013040626,-500.0,0.00019178,2]
[315399859,1709013040635,-500.0,0.00019178,2]
[315399861,1709013040644,-500.0,0.00019178,2]
[315399863,1709013040653,-500.0,0.00019178,2]
[315399865,1709013040690,-500.0,0.00019178,2]
[315399867,1709013040700,-500.0,0.00019178,2]
[315399868,1709013040709,-500.0,0.00019178,2]
[315399870,1709013040718,-503.26423189,0.00019178,2]
[315399873,1709013040728,-500.0,0.00019178,2]
[315399875,1709013040737,-552.22,0.00019178,2]
[315399877,1709013040747,-8975.46,0.00019178,2]
[315399878,1709013040756,-500.0,0.00019178,2]
[315399880,1709013040766,-500.0,0.00019178,2]
[315399882,1709013040775,-1758.47,0.00019178,2]
[315399884,1709013040784,-503.49687487,0.00019178,2]
[315399886,1709013040793,-500.0,0.00019178,2]
[315399888,1709013040802,-501.22080587,0.00019178,2]
[315399901,1709013040910,-863.05,0.00019178,2]
[315399903,1709013040920,-500.0,0.00019178,2]
[315399905,1709013040930,-500.0,0.00019178,2]
[315399907,1709013040939,-3499.25,0.00019178,2]
[315399909,1709013040949,-500.0,0.00019178,2]
[315399911,1709013040959,-501.83788764,0.00019178,2]
[315399913,1709013040970,-500.91730771,0.00019178,2]
[315399915,1709013040979,-500.0,0.00019178,2]
[315399917,1709013040988,-268.55333724,0.00019178,2]
[315399919,1709013040997,-1056.84,0.00019178,2]
[315399921,1709013041006,-500.0,0.00019178,2]
[315399923,1709013041016,-500.0,0.00019178,2]
[315399925,1709013041025,-500.0,0.00019178,2]
[315399927,1709013041034,-500.0,0.00019178,2]
[315399929,1709013041043,-500.0,0.00019178,2]
[315399931,1709013041052,-500.0,0.00019178,2]
[315399933,1709013041062,-500.0,0.00019178,2]
[315399935,1709013041071,-500.0,0.00019178,2]
[315399937,1709013041081,-500.0,0.00019178,2]
[315399939,1709013041090,-860.53,0.00019178,2]
[315399941,1709013041099,-500.0,0.00019178,2]
[315399943,1709013041109,-503.38,0.00019178,2]
[315399945,1709013041118,-500.0,0.00019178,2]
[315399947,1709013041127,-500.0,0.00019178,2]
[315399949,1709013041137,-904.68,0.00019178,2]
[315399951,1709013041147,-500.0,0.00019178,2]
[315399953,1709013041157,-500.0,0.00019178,2]
[315399955,1709013041166,-783.31,0.00019178,2]
[315399957,1709013041175,-18266.78,0.00019178,2]
[315399959,1709013041184,-1307.58,0.00019178,2]
[315399961,1709013041193,-171.31810075,0.00019178,2]
[315399963,1709013041202,-500.0,0.00019178,2]
[315399965,1709013041211,-500.0,0.00019178,2]
[315399967,1709013041220,-2579.92,0.00019178,2]
[315399968,1709013041230,-500.0,0.00019178,2]
[315399970,1709013041239,-632.01,0.00019178,2]
[315399971,1709013041249,-500.0,0.00019178,2]
[315399972,1709013041258,-1424.35,0.00019178,2]
[315399973,1709013041267,-500.0,0.00019178,2]
[315399974,1709013041276,-500.0,0.00019178,2]
[315399975,1709013041285,-6918.5,0.00019178,2]
[315399976,1709013041294,-500.0,0.00019178,2]
[315399977,1709013041303,-500.0,0.00019178,2]
[315399978,1709013041312,-503.20835864,0.00019178,2]
[315399979,1709013041322,-500.0,0.00019178,2]
[315399980,1709013041331,-4375.15,0.00019178,2]
[315399981,1709013041340,-500.0,0.00019178,2]
[315399982,1709013041349,-500.0,0.00019178,2]
[315399983,1709013041358,-500.0,0.00019178,2]
[315399984,1709013041367,-500.0,0.00019178,2]
[315399985,1709013041376,-500.0,0.00019178,2]
[315399986,1709013041385,-500.0,0.00019178,2]
[315399987,1709013041394,-500.0,0.00019178,2]
[315399988,1709013041403,-500.0,0.00019178,2]
[315399989,1709013041414,-818.42,0.00019178,2]
[315399990,1709013041424,-1958.59,0.00019178,2]
[315399991,1709013041433,-500.0,0.00019178,2]
[315399992,1709013041442,-536.95,0.00019178,2]
[315399993,1709013041451,-2851.88,0.00019178,2]
[315399994,1709013041460,-500.0,0.00019178,2]
[315399995,1709013041470,-718.16,0.00019178,2]
[315399996,1709013041479,-1995.47,0.00019178,2]
[315399997,1709013041488,-500.0,0.00019178,2]
[315399998,1709013041497,-500.67580525,0.00019178,2]
[315399999,1709013041506,-694.82180753,0.00019178,2]
[315400000,1709013041515,-168.108309,0.00019178,2]
[315400001,1709013041524,-162.782902,0.00019178,2]
[315400003,1709013041534,-166.666666,0.00019178,2]
[315400004,1709013041543,-500.0,0.00019232,2]
[315400005,1709013041552,-500.0,0.00019287,2]
[315400007,1709013041561,-500.0,0.00019342,2]
[315400009,1709013041569,-1430.2382641,0.00019352,2]
[315400010,1709013041578,-500.0,0.00019396,2]
[315400011,1709013041588,-827.03,0.0001945,2]
[315400012,1709013041597,-500.0,0.0001945,2]
[315400013,1709013041607,-500.0,0.0001945,2]
[315400014,1709013041616,-827.03,0.00019451,2]
[315400015,1709013041624,-827.03,0.00019451,2]
[315400016,1709013041635,-827.03,0.00019451,2]
[315400017,1709013041644,-500.0,0.00019451,2]
[315400018,1709013041653,-500.0,0.00019451,2]
[315400019,1709013041662,-500.0,0.00019451,2]
[315400020,1709013041672,-500.0,0.00019451,2]
[315400021,1709013041681,-500.0,0.00019451,2]
[315400022,1709013041690,-502.71268128,0.00019451,2]
[315400023,1709013041700,-500.0,0.00019451,2]
[315400024,1709013041709,-1519.40144155,0.00019451,2]
[315400025,1709013041718,-500.0,0.00019452,2]
[315400026,1709013041727,-500.0,0.00019452,2]
[315400027,1709013041736,-500.0,0.00019452,2]
[315400028,1709013041744,-676.06,0.00019452,2]
[315400029,1709013041755,-500.0,0.00019452,2]
[315400030,1709013041765,-500.0,0.00019452,2]
[315400031,1709013041774,-1196.51,0.00019452,2]
[315400032,1709013041783,-500.0,0.00019452,2]
[315400033,1709013041792,-387.93424642,0.00019452,2]
[315400034,1709013041801,-500.0,0.00019452,2]
[315400035,1709013041811,-500.0,0.00019452,2]
[315400036,1709013041821,-500.0,0.00019452,2]
[315400037,1709013041831,-500.0,0.00019452,2]
[315400038,1709013041840,-2468.09,0.00019452,2]
[315400039,1709013041850,-500.0,0.00019452,2]
[315400040,1709013041859,-507.5916589,0.00019452,2]
[315400041,1709013041869,-500.0,0.00019452,2]
[315400043,1709013041881,-500.0,0.00019452,2]
[315400045,1709013041891,-523.18221423,0.00019452,2]
[315400046,1709013041900,-500.0,0.00019452,2]
[315400048,1709013041909,-500.0,0.00019452,2]
[315400049,1709013041918,-722.64,0.00019452,2]
[315400050,1709013041927,-500.0,0.00019452,2]
[315400051,1709013041936,-500.0,0.00019452,2]
[315400052,1709013041946,-624.76811296,0.00019452,2]
[315400053,1709013041956,-670.13,0.00019452,2]
[315400054,1709013041965,-500.0,0.00019452,2]
[315400055,1709013041975,-500.0,0.00019452,2]
[315400056,1709013041984,-573.44249112,0.00019452,2]
[315400057,1709013041993,-500.0,0.00019452,2]
[315400058,1709013042002,-3196.31,0.00019452,2]
[315400059,1709013042011,-1315.3,0.00019452,2]
[315400060,1709013042020,-500.0,0.00019452,2]
[315400061,1709013042030,-2121.19,0.00019452,2]
[315400062,1709013042039,-500.0,0.00019452,2]
[315400063,1709013042049,-500.0,0.00019452,2]
[315400064,1709013042058,-500.0,0.00019452,2]
[315400065,1709013042067,-500.0,0.00019452,2]
[315400066,1709013042076,-501.13635766,0.00019452,2]
[315400067,1709013042086,-500.0,0.00019452,2]
[315400068,1709013042095,-500.0,0.00019452,2]
[315400069,1709013042105,-500.0,0.00019452,2]
[315400070,1709013042113,-583.2051723,0.00019452,2]
[315400072,1709013042123,-646.93,0.00019452,2]
[315400073,1709013042132,-500.0,0.00019452,2]
[315400074,1709013042141,-162.83762222,0.00019452,2]
[315400075,1709013042150,-502.85792086,0.00019452,2]
[315400076,1709013042160,-500.0,0.00019452,2]
[315400077,1709013042168,-502.99389628,0.00019452,2]
[315400078,1709013042177,-581.55260075,0.00019452,2]
[315400079,1709013042186,-2430.74,0.00019452,2]
[315400080,1709013042197,-500.0,0.00019452,2]
[315400081,1709013042206,-500.0,0.00019452,2]
[315400082,1709013042216,-500.0,0.00019452,2]
[315400083,1709013042225,-501.70867165,0.00019452,2]
[315400084,1709013042233,-501.98121851,0.00019452,2]
[315400085,1709013042243,-1277.93,0.00019452,2]
[315400086,1709013042252,-1360.78,0.00019452,2]
[315400087,1709013042261,-211.14111785,0.00019452,2]
[315400088,1709013042270,-500.0,0.00019452,2]
[315400089,1709013042280,-500.0,0.00019452,2]
[315400090,1709013042289,-1266.31,0.00019452,2]
[315400091,1709013042298,-500.0,0.00019452,2]
[315400092,1709013042307,-500.0,0.00019452,2]
[315400093,1709013042316,-500.0,0.00019452,2]
[315400094,1709013042325,-500.0,0.00019452,2]
[315400095,1709013042335,-500.0,0.00019452,2]
[315400096,1709013042344,-1601.34,0.00019452,2]
[315400097,1709013042353,-379.90449438,0.00019452,2]
[315400098,1709013042362,-1729.0,0.00019452,2]
[315400099,1709013042371,-500.0,0.00019452,2]
[315400100,1709013042381,-226.05511992,0.00019452,2]
[315400101,1709013042390,-500.0,0.00019452,2]
[315400102,1709013042399,-379.01528578,0.00019452,2]
[315400103,1709013042409,-500.0,0.00019452,2]
[315400104,1709013042419,-500.0,0.00019452,2]
[315400105,1709013042430,-369.76023936,0.00019452,2]
[315400106,1709013042439,-500.0,0.00019452,2]
[315400107,1709013042450,-632.27431855,0.00019452,2]
[315400108,1709013042459,-302.1536889,0.00019452,2]
[315400110,1709013042468,-500.0,0.00019452,2]
[315400112,1709013042478,-1393.89,0.00019452,2]
[315400114,1709013042486,-16819.02,0.00019452,2]
[315400115,1709013042495,-500.86552404,0.00019452,2]
[315400116,1709013042504,-500.0,0.00019452,2]
[315400117,1709013042513,-500.0,0.00019452,2]
[315400118,1709013042522,-500.0,0.00019452,2]
[315400119,1709013042532,-235.52195681,0.00019452,2]
[315400120,1709013042541,-500.0,0.00019452,2]
[315400121,1709013042550,-552.22,0.00019452,2]
[315400122,1709013042559,-8975.46,0.00019452,2]
[315400124,1709013042569,-500.0,0.00019452,2]
[315400126,1709013042577,-1758.47,0.00019452,2]
[315400127,1709013042586,-500.0,0.00019452,2]
[315400128,1709013042595,-863.05,0.00019452,2]
[315400129,1709013042605,-500.0,0.00019452,2]
[315400130,1709013042614,-500.0,0.00019452,2]
[315400131,1709013042623,-3499.25,0.00019452,2]
[315400132,1709013042634,-500.0,0.00019452,2]
[315400133,1709013042645,-500.0,0.00019452,2]
[315400134,1709013042656,-1056.84,0.00019452,2]
[315400135,1709013042666,-500.0,0.00019452,2]
[315400136,1709013042676,-500.90735407,0.00019452,2]
[315400137,1709013042686,-500.0,0.00019452,2]
[315400138,1709013042697,-501.19562815,0.00019452,2]
[315400139,1709013042707,-500.0,0.00019452,2]
[315400140,1709013042717,-500.0,0.00019452,2]
[315400141,1709013042727,-500.0,0.00019452,2]
[315400142,1709013042737,-860.53,0.00019452,2]
[315400143,1709013042747,-500.0,0.00019452,2]
[315400144,1709013042758,-503.38,0.00019452,2]
[315400145,1709013042768,-500.0,0.00019452,2]
[315400146,1709013042778,-500.0,0.00019452,2]
[315400147,1709013042789,-904.68,0.00019452,2]
[315400148,1709013042799,-500.0,0.00019452,2]
[315400149,1709013042810,-500.0,0.00019452,2]
[315400150,1709013042820,-783.31,0.00019452,2]
[315400151,1709013042829,-18266.78,0.00019452,2]
[315400152,1709013042838,-1307.58,0.00019452,2]
[315400153,1709013042848,-500.0,0.00019452,2]
[315400154,1709013042857,-500.0,0.00019452,2]
[315400155,1709013042867,-2579.92,0.00019452,2]
[315400156,1709013042877,-500.0,0.00019452,2]
[315400157,1709013042887,-632.01,0.00019452,2]
[315400158,1709013042897,-500.0,0.00019452,2]
[315400159,1709013042907,-1424.35,0.00019452,2]
[315400160,1709013042918,-500.0,0.00019452,2]
[315400161,1709013042927,-503.73065665,0.00019452,2]
[315400162,1709013042936,-6918.5,0.00019452,2]
[315400163,1709013042949,-500.0,0.00019452,2]
[315400164,1709013042961,-500.0,0.00019452,2]
[315400165,1709013042972,-500.0,0.00019452,2]
[315400166,1709013042981,-4375.15,0.00019452,2]
[315400167,1709013042990,-500.0,0.00019452,2]
[315400168,1709013043000,-500.0,0.00019452,2]
[315400169,1709013043010,-500.0,0.00019452,2]
[315400170,1709013043019,-500.0,0.00019452,2]
[315400171,1709013043029,-500.0,0.00019452,2]
[315400172,1709013043039,-818.42,0.00019452,2]
[315400173,1709013043048,-1958.59,0.00019452,2]
[315400174,1709013043058,-500.0,0.00019452,2]
[315400175,1709013043068,-536.95,0.00019452,2]
[315400176,1709013043079,-2851.88,0.00019452,2]
[315400177,1709013043090,-500.0,0.00019452,2]
[315400178,1709013043180,-718.16,0.00019452,2]
[315400179,1709013043191,-1995.47,0.00019452,2]
[315400180,1709013043203,-501.29042956,0.00019452,2]
[315400181,1709013043213,-1430.23826409,0.00019489,2]
[315400182,1709013043223,-352.01506984,0.00019506,2]
[315400183,1709013043233,-1430.23826409,0.00019626,2]
[315400184,1709013043244,-166.666666,0.00019627,2]
[315400185,1709013043254,-827.03,0.00019725,2]
[315400186,1709013043263,-827.03,0.00019725,2]
[315400187,1709013043273,-827.03,0.00019725,2]
[315400188,1709013043283,-500.0,0.00019725,2]
[315400189,1709013043295,-500.0,0.00019725,2]
[315400190,1709013043306,-500.0,0.00019725,2]
[315400191,1709013043316,-500.0,0.00019726,2]
[315400192,1709013043327,-500.0,0.00019726,2]
[315400193,1709013043336,-509.88522936,0.00019726,2]
[315400194,1709013043347,-676.06,0.00019726,2]
[315400195,1709013043357,-500.0,0.00019726,2]
[315400196,1709013043368,-1196.51,0.00019726,2]
[315400197,1709013043378,-500.0,0.00019726,2]
[315400198,1709013043388,-500.0,0.00019726,2]
[315400199,1709013043397,-500.0,0.00019726,2]
[315400200,1709013043406,-500.0,0.00019726,2]
[315400201,1709013043415,-500.0,0.00019726,2]
[315400202,1709013043424,-2468.09,0.00019726,2]